fUST/lending_fUST_20240311
["ID","MTS","AMOUNT","RATE_DAILY","PERIOD"]
[318207359,1710117043934,-1054.64,0.00023998,2]
[318207361,1710117043944,-1054.64,0.00023998,2]
[318207363,1710117043954,-993.81205494,0.00023999,2]
[318207366,1710117043969,-163.32544229,0.00023999,2]
[318207368,1710117043980,-2603.49710131,0.00023999,2]
[318207370,1710117043990,-500.0,0.00023999,2]
[318207372,1710117044000,-500.0,0.00023999,2]
[318207374,1710117044011,-500.0,0.00023999,2]
[318207376,1710117044021,-500.0,0.00023999,2]
[318207378,1710117044036,-500.0,0.00023999,2]
[318207380,1710117044047,-542.54589939,0.00023999,2]
[318207383,1710117044058,-500.0,0.00023999,2]
[318207385,1710117044070,-500.0,0.00023999,2]
[318207387,1710117044080,-500.0,0.00023999,2]
[318207389,1710117044091,-500.0,0.00023999,2]
[318207391,1710117044102,-500.0,0.00023999,2]
[318207393,1710117044114,-500.0,0.00023999,2]
[318207396,1710117044126,-151.0,0.00023999,2]
[318207398,1710117044140,-209.899357,0.00023999,2]
[318207400,1710117044150,-500.0,0.00023999,2]
[318207402,1710117044160,-500.0,0.00023999,2]
[318207404,1710117044170,-500.0,0.00023999,2]
[318207406,1710117044180,-317.59,0.00023999,2]
[318207408,1710117044189,-156.61476318,0.00023999,2]
[318207410,1710117044199,-500.0,0.00023999,2]
[318207412,1710117044211,-329.77420208,0.00023999,2]
[318207414,1710117044222,-500.0,0.00023999,2]
[318207416,1710117044233,-500.0,0.00023999,2]
[318207418,1710117044243,-456.822767,0.00023999,2]
[318207421,1710117044254,-500.0,0.00023999,2]
[318207423,1710117044263,-500.0,0.00023999,2]
[318207425,1710117044273,-500.0,0.00023999,2]
[318207427,1710117044285,-500.0,0.00023999,2]
[318207429,1710117044297,-500.0,0.00023999,2]
[318207431,1710117044308,-500.0,0.00023999,2]
[318207433,1710117044318,-500.0,0.00023999,2]
[318207435,1710117044329,-500.0,0.00023999,2]
[318207437,1710117044339,-500.0,0.00023999,2]
[318207439,1710117044349,-500.0,0.00023999,2]
[318207441,1710117044359,-500.0,0.00023999,2]
[318207443,1710117044370,-500.0,0.00023999,2]
[318207445,1710117044385,-500.0,0.00023999,2]
[318207447,1710117044396,-500.0,0.00023999,2]
[318207450,1710117044408,-500.0,0.00023999,2]
[318207452,1710117044419,-476.48,0.00023999,2]
[318207454,1710117044430,-500.0,0.00023999,2]
[318207456,1710117044440,-443.46,0.00023999,2]
[318207458,1710117044450,-500.0,0.00023999,2]
[318207460,1710117044461,-428.85097518,0.00023999,2]
[318207462,1710117044472,-500.0,0.00023999,2]
[318207464,1710117044482,-500.0,0.00023999,2]
[318207466,1710117044493,-500.0,0.00023999,2]
[318207468,1710117044503,-500.0,0.00023999,2]
[318207470,1710117044514,-500.0,0.00023999,2]
[318207472,1710117044525,-500.0,0.00023999,2]
[318207475,1710117044536,-500.0,0.00023999,2]
[318207487,1710117044652,-500.0,0.00023999,2]
[318207489,1710117044661,-500.0,0.00023999,2]
[318207491,1710117044672,-500.0,0.00023999,2]
[318207493,1710117044682,-500.0,0.00023999,2]
[318207495,1710117044692,-157.04,0.00023999,2]
[318207497,1710117044702,-715.879293,0.00023999,2]
[318207499,1710117044711,-715.879293,0.00023999,2]
[318207501,1710117044720,-715.879293,0.00023999,2]
[318207503,1710117044729,-715.879293,0.00023999,2]
[318207505,1710117044739,-715.879293,0.00023999,2]
[318207506,1710117044749,-715.879293,0.00023999,2]
[318207508,1710117044759,-715.879293,0.00023999,2]
[318207510,1710117044769,-715.879293,0.00023999,2]
[318207512,1710117044778,-715.879293,0.00023999,2]
[318207514,1710117044789,-715.879293,0.00023999,2]
[318207516,1710117044799,-270.66,0.00023999,2]
[318207518,1710117044808,-152.11660597,0.00023999,2]
[318207520,1710117044818,-500.0,0.00023999,2]
[318207522,1710117044828,-500.0,0.00023999,2]
[318207524,1710117044836,-500.0,0.00023999,2]
[318207526,1710117044846,-500.0,0.00023999,2]
[318207528,1710117044855,-255.35798583,0.00023999,2]
[318207530,1710117044864,-500.0,0.00023999,2]
[318207532,1710117044874,-500.0,0.00023999,2]
[318207534,1710117044886,-500.0,0.00023999,2]
[318207536,1710117044896,-500.0,0.00023999,2]
[318207538,1710117044906,-435.5760407,0.00023999,2]
[318207540,1710117044916,-500.0,0.00023999,2]
[318207542,1710117044925,-500.0,0.00023999,2]
[318207544,1710117044934,-197.4474604,0.00023999,2]
[318207546,1710117044944,-500.0,0.00023999,2]
[318207548,1710117044953,-500.0,0.00023999,2]
[318207550,1710117044962,-500.9773869,0.00023999,2]
[318207552,1710117044971,-500.0,0.00023999,2]
[318207554,1710117044980,-500.0,0.00023999,2]
[318207556,1710117044989,-500.0,0.00023999,2]
[318207558,1710117044999,-500.0,0.00023999,2]
[318207560,1710117045008,-500.0,0.00023999,2]
[318207562,1710117045017,-500.0,0.00023999,2]
[318207564,1710117045028,-500.0,0.00023999,2]
[318207566,1710117045040,-517.72,0.00023999,2]
[318207568,1710117045049,-163.319554,0.00023999,2]
[318207570,1710117045058,-500.0,0.00023999,2]
[318207571,1710117045067,-71.44608206,0.00023999,2]
[318215546,1710118232629,-186.46348321,0.00021351,2]
[318215547,1710118232639,-607.53034533,0.00021352,2]
[318215549,1710118232649,-1951.55607231,0.00021353,2]
[318215550,1710118232659,-325.84919186,0.00021354,2]
[318215552,1710118232669,-596.19717157,0.00021355,2]
[318215553,1710118232679,-239.036041,0.00021499,2]
[318215555,1710118232688,-16485.4608536,0.00021706,2]
[318215556,1710118232698,-186.93819399,0.00021793,2]
[318215557,1710118232707,-203.94771826,0.00021899,2]
[318215559,1710118232725,-1500.0,0.00022838,2]
[318215560,1710118232736,-154.82890648,0.00022885,2]
[318215561,1710118232746,-169.13903822,0.00022903,2]
[318215562,1710118232755,-3474.30033731,0.00023278,5]
[318215563,1710118232765,-2003.05,0.000235,2]
[318215564,1710118232775,-52711.03128771,0.0002388,15]
[318215565,1710118232786,-2336.6072504,0.000239,2]
[318215566,1710118232796,-500.0,0.00023997,2]
[318215567,1710118232806,-500.0,0.00023997,2]
[318215568,1710118232815,-500.0,0.00023997,2]
[318215569,1710118232825,-500.0,0.00023997,2]
[318215570,1710118232839,-383.00913629,0.00023997,2]
[318215571,1710118232849,-500.0,0.00023997,2]
[318215572,1710118232858,-500.0,0.00023997,2]
[318215573,1710118232867,-250.0,0.00023997,2]
[318215574,1710118232876,-682.32366189,0.00023998,2]
[318215575,1710118232885,-624.13231565,0.00023998,2]
[318215576,1710118232894,-211.97574014,0.00023998,2]
[318215577,1710118232903,-155.916356,0.00023998,2]
[318215578,1710118232912,-15253.15738836,0.00023998,2]
[318215579,1710118232921,-539.02796676,0.00023998,2]
[318215580,1710118232930,-528.48551733,0.00023998,2]
[318215581,1710118232939,-191.4800443,0.00023998,2]
[318215582,1710118232948,-500.0,0.00023998,2]
[318215583,1710118232957,-618.66691548,0.00023998,2]
[318215584,1710118232967,-500.0,0.00023998,2]
[318215585,1710118232976,-437.0,0.00023998,2]
[318215586,1710118232985,-500.0,0.00023998,2]
[318215587,1710118232994,-500.0,0.00023998,2]
[318215588,1710118233003,-500.0,0.00023998,2]
[318215589,1710118233012,-500.0,0.00023998,2]
[318215590,1710118233021,-230.03413038,0.00023998,2]
[318215591,1710118233030,-500.0,0.00023998,2]
[318215592,1710118233039,-500.0,0.00023998,2]
[318215593,1710118233047,-500.0,0.00023998,2]
[318215594,1710118233056,-500.7541659,0.00023998,2]
[318215595,1710118233065,-790.98,0.00023998,2]
[318215596,1710118233074,-790.98,0.00023998,2]
[318215597,1710118233087,-790.98,0.00023998,2]
[318215598,1710118233096,-500.0,0.00023998,2]
[318215599,1710118233106,-500.0,0.00023998,2]
[318215600,1710118233116,-442.1560497,0.00023998,2]
[318215601,1710118233125,-500.0,0.00023998,2]
[318215602,1710118233135,-500.0,0.00023998,2]
[318215603,1710118233144,-500.0,0.00023998,2]
[318215604,1710118233153,-1419.92,0.00023998,2]
[318215605,1710118233162,-1419.92,0.00023998,2]
[318215606,1710118233171,-1419.92,0.00023998,2]
[318215607,1710118233181,-1647.75228183,0.00023998,2]
[318215608,1710118233191,-417.26523691,0.00023998,2]
[318215609,1710118233200,-192.66637702,0.00023998,2]
[318215610,1710118233210,-499.07008966,0.00023998,2]
[318215611,1710118233220,-500.0,0.00023998,2]
[318215612,1710118233229,-500.0,0.00023998,2]
[318215613,1710118233240,-356.52145649,0.00023998,2]
[318215614,1710118233250,-387.56364571,0.00023998,2]
[318215615,1710118233259,-357.939646,0.00023999,2]
[318215616,1710118233269,-357.939646,0.00023999,2]
[318215617,1710118233279,-500.0,0.00023999,2]
[318215618,1710118233288,-500.0,0.00023999,2]
[318215619,1710118233297,-500.0,0.00023999,2]
[318215620,1710118233307,-576.59994264,0.00023999,2]
[318215621,1710118233316,-500.0,0.00023999,2]
[318215622,1710118233327,-500.0,0.00023999,2]
[318215623,1710118233345,-500.0,0.00023999,2]
[318215624,1710118233354,-500.0,0.00023999,2]
[318215625,1710118233364,-500.0,0.00023999,2]
[318215626,1710118233373,-500.0,0.00023999,2]
[318215627,1710118233384,-500.0,0.00023999,2]
[318215628,1710118233396,-500.0,0.00023999,2]
[318215629,1710118233406,-500.0,0.00023999,2]
[318215630,1710118233415,-500.0,0.00023999,2]
[318215631,1710118233425,-500.0,0.00023999,2]
[318215632,1710118233437,-500.0,0.00023999,2]
[318215633,1710118233448,-500.0,0.00023999,2]
[318215634,1710118233458,-296.72391794,0.00023999,2]
[318215635,1710118233467,-790.98,0.00023999,2]
[318215636,1710118233478,-790.98,0.00023999,2]
[318215637,1710118233488,-790.98,0.00023999,2]
[318215638,1710118233498,-790.98,0.00023999,2]
[318215639,1710118233508,-790.98,0.00023999,2]
[318215640,1710118233518,-790.98,0.00023999,2]
[318215641,1710118233527,-790.98,0.00023999,2]
[318215642,1710118233537,-790.98,0.00023999,2]
[318215643,1710118233546,-790.98,0.00023999,2]
[318215644,1710118233655,-790.98,0.00023999,2]
[318215645,1710118233687,-790.98,0.00023999,2]
[318215646,1710118233696,-790.98,0.00023999,2]
[318215647,1710118233706,-790.98,0.00023999,2]
[318215648,1710118233715,-790.98,0.00023999,2]
[318215649,1710118233725,-790.98,0.00023999,2]
[318215650,1710118233734,-790.98,0.00023999,2]
[318215651,1710118233743,-790.98,0.00023999,2]
[318215652,1710118233752,-790.98,0.00023999,2]
[318215653,1710118233762,-790.98,0.00023999,2]
[318215654,1710118233771,-790.98,0.00023999,2]
[318215655,1710118233781,-790.98,0.00023999,2]
[318215656,1710118233791,-500.0,0.00023999,2]
[318215657,1710118233801,-500.0,0.00023999,2]
[318215658,1710118233810,-500.0,0.00023999,2]
[318215659,1710118233820,-500.0,0.00023999,2]
[318215660,1710118233829,-500.0,0.00023999,2]
[318215661,1710118233842,-500.0,0.00023999,2]
[318215662,1710118233851,-500.0,0.00023999,2]
[318215663,1710118233860,-500.0,0.00023999,2]
[318215664,1710118233870,-500.0,0.00023999,2]
[318215665,1710118233879,-500.0,0.00023999,2]
[318215666,1710118233889,-500.0,0.00023999,2]
[318215667,1710118233898,-544.97047855,0.00023999,2]
[318215668,1710118233908,-1419.92,0.00023999,2]
[318215669,1710118233917,-1419.92,0.00023999,2]
[318215670,1710118233926,-1419.92,0.00023999,2]
[318215671,1710118233936,-1419.92,0.00023999,2]
[318215672,1710118233946,-1419.92,0.00023999,2]
[318215673,1710118233955,-1419.92,0.00023999,2]
[318215674,1710118233966,-1419.92,0.00023999,2]
[318215675,1710118233976,-1419.92,0.00023999,2]
[318215676,1710118233986,-1419.92,0.00023999,2]
[318215677,1710118233996,-1419.92,0.00023999,2]
[318215678,1710118234007,-788.78162676,0.00023999,2]
[318215679,1710118234021,-631.13837324,0.00023999,2]
[318215680,1710118234031,-1419.92,0.00023999,2]
[318215681,1710118234042,-1419.92,0.00023999,2]
[318215682,1710118234053,-1419.92,0.00023999,2]
[318215683,1710118234063,-1419.92,0.00023999,2]
[318215684,1710118234072,-1419.92,0.00023999,2]
[318215685,1710118234081,-1419.92,0.00023999,2]
[318215686,1710118234098,-1419.92,0.00023999,2]
[318215687,1710118234108,-1419.92,0.00023999,2]
[318215688,1710118234118,-1121.91993727,0.00023999,2]
[318215689,1710118234130,-298.00006273,0.00023999,2]
[318215690,1710118234139,-1420.06476441,0.00023999,2]
[318215691,1710118234149,-3563.04768594,0.00024,10]
[318215729,1710118239619,-236.11236834,0.00022837,2]
[318215731,1710118239629,-5155.22041373,0.00023998,2]
[318216343,1710118245508,-1324.96820685,0.00023998,2]
[318216345,1710118245518,-72.38179315,0.00023999,2]
[318216347,1710118245532,-113.90659665,0.00023999,2]
[318216349,1710118245542,-3570.73583703,0.00024,10]
[318217678,1710118287011,1076.82,0.00021012,7]
[318217689,1710118742946,-596.19717157,0.00020988,2]
[318217690,1710118742971,-624.32879826,0.00020989,2]
[318217691,1710118742993,-1951.55607231,0.00020989,2]
[318217692,1710118743015,-607.53034533,0.0002099,2]
[318217693,1710118743037,-352.82823748,0.00021,2]
[318217694,1710118743061,-165.965425,0.00021772,2]
[318217695,1710118743083,-272.60795278,0.00021899,2]
[318217696,1710118743105,-170.0,0.00022,2]
[318217697,1710118743127,-4202.1300132,0.00022126,2]
[318217698,1710118743149,-3591.13200154,0.00022597,2]
[318217699,1710118743170,-236.11236834,0.00022817,2]
[318217700,1710118743191,-239.036041,0.00022818,2]
[318217701,1710118743228,-170.0,0.00023014,2]
[318217702,1710118743253,-4883.57557319,0.00023278,5]
[318218173,1710119439006,-607.53034533,0.00021169,2]
[318218174,1710119439015,-325.84919186,0.0002117,2]
[318218175,1710119439024,-181.73863519,0.00021178,2]
[318218176,1710119439033,-168.0,0.00022,2]
[318218177,1710119439042,-236.11236834,0.00023013,2]
[318218178,1710119439050,-168.0,0.00023014,2]
[318218179,1710119439059,-5000.0,0.00023275,5]
[318218180,1710119439068,-15949.72744915,0.00023278,2]
[318218182,1710119439077,-153.0,0.00023678,2]
[318218184,1710119439087,-153.0,0.000237,2]
[318218185,1710119439096,-153.0,0.000237,2]
[318218188,1710119439105,-171.4906366,0.00023759,2]
[318218189,1710119439114,-2229.7667502,0.000239,2]
[318218191,1710119439123,-401.8982722,0.000239,2]
[318218194,1710119439132,-234.9606,0.00023976,2]
[318218195,1710119439141,-1001.26830492,0.00023997,2]
[318218197,1710119439150,-163.32544229,0.00023998,2]
[318218199,1710119439160,-211.97574014,0.00023998,2]
[318218201,1710119439169,-15253.15738836,0.00023998,2]
[318218203,1710119439178,-157.3240075,0.00023998,2]
[318218205,1710119439187,-186.40511874,0.00023998,2]
[318218207,1710119439197,-238.84175043,0.00023998,2]
[318218209,1710119439206,-312.55456953,0.00023998,2]
[318218211,1710119439215,-623.93583304,0.00023998,2]
[318218213,1710119439225,-595.40091345,0.00023998,2]
[318218215,1710119439234,-1217.79687105,0.00023998,2]
[318218217,1710119439246,-500.0,0.00023998,2]
[318218219,1710119439256,-155.0294556,0.00023998,2]
[318218221,1710119439265,-155.22652708,0.00023998,2]
[318218223,1710119439274,-703.45953046,0.00023998,2]
[318218225,1710119439283,-1668.03514243,0.00023998,2]
[318218227,1710119439292,-155.68273152,0.00023998,2]
[318218230,1710119439302,-500.0,0.00023998,2]
[318218231,1710119439311,-525.0,0.00023998,2]
[318218234,1710119439320,-500.0,0.00023998,2]
[318218236,1710119439329,-500.0,0.00023998,2]
[318218238,1710119439339,-211.41659541,0.00023999,2]
[318218240,1710119439348,-282.12468459,0.00023999,2]
[318218242,1710119439357,-592.7,0.00023999,2]
[318218244,1710119439366,-592.7,0.00023999,2]
[318218246,1710119439375,-592.7,0.00023999,2]
[318218248,1710119439384,-592.7,0.00023999,2]
[318218250,1710119439393,-592.7,0.00023999,2]
[318218251,1710119439403,-592.7,0.00023999,2]
[318218253,1710119439412,-592.7,0.00023999,2]
[318218256,1710119439422,-592.7,0.00023999,2]
[318218258,1710119439431,-592.7,0.00023999,2]
[318218259,1710119439440,-592.7,0.00023999,2]
[318218261,1710119439450,-592.7,0.00023999,2]
[318218263,1710119439459,-592.7,0.00023999,2]
[318218265,1710119439470,-592.7,0.00023999,2]
[318218267,1710119439479,-592.7,0.00023999,2]
[318218269,1710119439489,-592.7,0.00023999,2]
[318218271,1710119439498,-592.7,0.00023999,2]
[318218273,1710119439507,-592.7,0.00023999,2]
[318218275,1710119439516,-592.7,0.00023999,2]
[318218277,1710119439525,-592.7,0.00023999,2]
[318218279,1710119439534,-592.7,0.00023999,2]
[318218281,1710119439543,-592.7,0.00023999,2]
[318218283,1710119439552,-592.7,0.00023999,2]
[318218285,1710119439562,-592.7,0.00023999,2]
[318218287,1710119439571,-592.70709856,0.00023999,2]
[318218290,1710119439581,-84295.07977775,0.00024,10]
[318218292,1710119439594,-19062.65268732,0.00024,10]
[318218294,1710119439603,-101589.15907334,0.00024,10]
[318218296,1710119439615,-12458.95567445,0.00024,10]
[318218298,1710119439628,-4370.934524,0.00024,10]
[318218853,1710119444309,-14586.44363465,0.00024,10]
[318218858,1710119444333,-6149.17331751,0.00024,10]
[318218861,1710119444345,-1185.00001,0.00024,10]
[318218863,1710119444357,-272.93761572,0.00024,10]
[318218872,1710119444432,-8356.24740999,0.00024,10]
[318218875,1710119444444,-3447.35,0.00024,10]
[318218877,1710119444456,-8411.00000214,0.00024,10]
[318219162,1710119447082,-1608.0,0.00024,10]
[318219164,1710119447094,-381.5,0.00024,10]
[318219180,1710119447221,-18200.10206686,0.00024,10]
[318219183,1710119447232,-493.54128,0.00024,10]
[318219798,1710119453786,-173.74287633,0.000239,2]
[318219800,1710119453796,-151.0,0.00023999,2]
[318219803,1710119453806,-115.25712367,0.00023999,2]
[318219805,1710119453818,-35.74287633,0.00023999,2]
[318219807,1710119453830,-707.90311211,0.00023999,2]
[318219810,1710119453843,-1170.39582157,0.00023999,2]
[318219812,1710119453852,-607.53034533,0.00023999,2]
[318219814,1710119453862,-1609.97855722,0.00024,10]
[318219817,1710119453873,-5242.52814912,0.00024,10]
[318227607,1710120638142,-2115.55183871,0.00020251,2]
[318227608,1710120638152,-1474.69226491,0.00020251,2]
[318227609,1710120638162,-186.49972871,0.00020252,2]
[318227610,1710120638172,-320.8617717,0.00020252,2]
[318227611,1710120638184,-218.4409513,0.00020252,2]
[318227612,1710120638193,-607.64905388,0.00020252,2]
[318227613,1710120638202,-1461.20841727,0.00020252,5]
[318227614,1710120638215,-3538.79158273,0.00020252,5]
[318227615,1710120638224,-2537.57723047,0.00020253,2]
[318227616,1710120638234,-23706.88463149,0.00020254,2]
[318227617,1710120638244,-195.891127,0.00020257,2]
[318227618,1710120638254,-3000.0,0.00020483,2]
[318227619,1710120638263,-313.7116535,0.00020659,2]
[318227620,1710120638273,-2409.6705873,0.00020786,2]
[318227621,1710120638283,-1193.202068,0.00020826,2]
[318227622,1710120638292,-3599.2202808,0.00020869,2]
[318227623,1710120638302,-186.93819399,0.00020876,2]
[318227624,1710120638311,-406.3228148,0.00020978,2]
[318227625,1710120638320,-344.188821,0.00021164,2]
[318227626,1710120638329,-160.806833,0.00021472,2]
[318227627,1710120638339,-3425.78734782,0.0002169,2]
[318227628,1710120638349,-431.31536158,0.000219,2]
[318227629,1710120638358,-178.0,0.00022,2]
[318227630,1710120638368,-1500.0,0.00022219,2]
[318227631,1710120638377,-177.259189,0.00022725,2]
[318227632,1710120638387,-1500.0,0.00022838,2]
[318227633,1710120638396,-2518.39698206,0.00022903,2]
[318227634,1710120638406,-440.71947186,0.00022903,2]
[318227635,1710120638415,-256.60350745,0.00022999,2]
[318227636,1710120638424,-17687.0,0.00023,2]
[318227637,1710120638433,-178.0,0.00023014,2]
[318227638,1710120638442,-200.7576938,0.00023178,2]
[318227639,1710120638451,-153.0,0.00023178,2]
[318227640,1710120638460,-1500.0,0.00023457,2]
[318227641,1710120638471,-200.9890174,0.00023878,2]
[318227642,1710120638481,-8537.78674886,0.000239,2]
[318227643,1710120638494,-2798.80336675,0.000239,2]
[318227644,1710120638505,-8076.48410785,0.000239,2]
[318227645,1710120638515,-634.9110942,0.00023975,2]
[318227646,1710120638524,-500.0,0.00023997,2]
[318227647,1710120638533,-500.0,0.00023997,2]
[318227648,1710120638543,-500.0,0.00023997,2]
[318227650,1710120638552,-500.0,0.00023997,2]
[318227652,1710120638561,-500.0,0.00023997,2]
[318227653,1710120638570,-201.6519073,0.00023997,2]
[318227655,1710120638580,-500.0,0.00023997,2]
[318227657,1710120638589,-500.0,0.00023997,2]
[318227659,1710120638598,-269.15280228,0.00023998,2]
[318227660,1710120638607,-3069.53953629,0.00023998,2]
[318227662,1710120638616,-466.02187951,0.00023998,2]
[318227664,1710120638626,-745.65931905,0.00023998,2]
[318227665,1710120638635,-558.21645623,0.00023998,2]
[318227667,1710120638644,-155.28108391,0.00023998,2]
[318227669,1710120638653,-157.29568872,0.00023998,2]
[318227671,1710120638663,-155.18942404,0.00023998,2]
[318227673,1710120638672,-312.84550812,0.00023998,7]
[318227675,1710120638682,-191.4800443,0.00023998,2]
[318227676,1710120638691,-155.83489796,0.00023998,2]
[318227678,1710120638700,-155.21292275,0.00023998,2]
[318227680,1710120638710,-160.19387848,0.00023998,2]
[318227682,1710120638720,-624.13231565,0.00023998,2]
[318227683,1710120638728,-595.99810704,0.00023998,2]
[318227685,1710120638738,-269.14973285,0.00023998,2]
[318227687,1710120638750,-310.47402451,0.00023999,2]
[318227689,1710120638759,-1065.52008279,0.00023999,2]
[318227690,1710120638770,-285.66789498,0.00023999,2]
[318227692,1710120638779,-500.53642367,0.00023999,2]
[318227694,1710120638789,-640.43369029,0.00023999,2]
[318227696,1710120638799,-220.7812581,0.00023999,2]
[318227698,1710120638808,-500.0,0.00023999,2]
[318227699,1710120638818,-500.0,0.00023999,2]
[318227701,1710120638827,-500.0,0.00023999,2]
[318227703,1710120638836,-500.0,0.00023999,2]
[318227705,1710120638845,-500.0,0.00023999,2]
[318227707,1710120638854,-500.0,0.00023999,2]
[318227708,1710120638863,-500.0,0.00023999,2]
[318227710,1710120638872,-434.15072618,0.00023999,2]
[318227712,1710120638881,-500.0,0.00023999,2]
[318227714,1710120638890,-500.0,0.00023999,2]
[318227715,1710120638900,-155.38424628,0.00023999,2]
[318227717,1710120638912,-278.18172989,0.00023999,2]
[318227719,1710120638920,-500.0,0.00023999,2]
[318227721,1710120638929,-500.0,0.00023999,2]
[318227723,1710120638940,-500.0,0.00023999,2]
[318227725,1710120638949,-535.68991184,0.00023999,2]
[318227727,1710120638958,-500.0,0.00023999,2]
[318227728,1710120638967,-500.0,0.00023999,2]
[318227730,1710120638978,-500.0,0.00023999,2]
[318227732,1710120638987,-500.0,0.00023999,2]
[318227734,1710120638998,-413.12047264,0.00023999,2]
[318227736,1710120639007,-501.51686583,0.00023999,2]
[318227737,1710120639016,-14826.69277166,0.00024,10]
[318227744,1710120639107,-40295.80007679,0.00024,10]
[318227746,1710120639121,-32520.28589062,0.00024,10]
[318227748,1710120639132,-500.0,0.00024,10]
[318228111,1710120643063,-27897.88692312,0.00024,10]
[318228199,1710120644119,-3360.0003657,0.00024,10]
[318228201,1710120644133,-2218.25608848,0.00024,10]
[318228425,1710120646222,-7003.72221484,0.00024,10]
[318232553,1710121164268,1393.18718809,0.00019809,2]
[318232554,1710121219730,1000.9,0.0002488,40]
[318232556,1710121266695,-250.0,0.00019708,2]
[318232557,1710121266718,-539.302723,0.00019746,2]
[318232558,1710121266741,-5000.0,0.00019746,2]
[318232559,1710121266769,-277.499303,0.00019747,2]
[318232560,1710121267809,70.197974,0.00019707,2]
[318232562,1710121336285,-186.49972871,0.00019808,2]
[318232563,1710121336309,-18013.50027129,0.00019809,2]
[318232564,1710121401925,-7793.0,0.0001966,2]
[318232565,1710121537245,-4132.0,0.00018735,2]
[318232595,1710121833011,-5000.0,0.00017246,2]
[318232597,1710121833021,-3000.0,0.00017247,2]
[318232599,1710121833031,-1951.90972773,0.0001749,2]
[318232600,1710121833040,-325.90517914,0.00017491,2]
[318232602,1710121833049,-624.4418368,0.00017491,2]
[318232604,1710121833058,-1165.2238495,0.00017499,2]
[318232607,1710121833068,-258.267672,0.00017734,2]
[318232608,1710121833078,-375.6380129,0.00018093,2]
[318232610,1710121833087,-160.3136944,0.00018202,2]
[318232613,1710121833097,-327.27322283,0.00018732,2]
[318232615,1710121833106,-79.7061958,0.00018735,2]
[318232616,1710121833116,-15952.47806843,0.00018735,2]
[318232619,1710121833126,-36516.68302431,0.00018735,2]
[318232620,1710121833135,-686.93817482,0.00018735,2]
[318232623,1710121833144,-482.74334282,0.000189,2]
[318232624,1710121833153,-500.0,0.00019178,2]
[318232626,1710121833163,-500.0,0.00019178,2]
[318232629,1710121833174,-500.0,0.00019178,2]
[318232630,1710121833183,-165.9654258,0.00019178,2]
[318232632,1710121833193,-17107.0,0.0001966,2]
[318232635,1710121833202,-1382.12791057,0.00019809,2]
[318232636,1710121833212,-382.7424153,0.00019872,2]
[318232639,1710121833224,-155.14894299,0.0002,2]
[318232640,1710121833233,-607.64905388,0.0002,2]
[318232642,1710121833242,-174.0735657,0.00020213,2]
[318232644,1710121833251,-172.19662,0.0002113,2]
[318232646,1710121833260,-693.56747534,0.00021734,2]
[318232648,1710121833269,-163.0,0.00022,2]
[318232651,1710121833279,-170.0,0.00022,2]
[318232653,1710121833288,-163.0,0.00022192,2]
[318232655,1710121833297,-623.67837377,0.00022821,2]
[318232656,1710121833307,-163.0,0.00023014,2]
[318232658,1710121833316,-170.0,0.00023014,2]
[318232661,1710121833328,-153.0,0.00023178,2]
[318232663,1710121833337,-306.0,0.00023178,2]
[318232665,1710121833346,-373.447709,0.00023178,2]
[318232667,1710121833355,-444.8062753,0.00023178,2]
[318232669,1710121833364,-257.8792595,0.00023178,2]
[318232671,1710121833379,-201.0348662,0.00023178,2]
[318232673,1710121833388,-201.0348662,0.00023178,2]